fUST/lending_fUST_20250819
["ID","MTS","AMOUNT","RATE_DAILY","PERIOD"]
[380146652,1755575440048,-480.0,0.00019178,2]
[380146653,1755575440058,-2661.95,0.00019178,2]
[380146654,1755575440068,-485.9267069,0.00019178,2]
[380146656,1755575440078,-480.0,0.00019178,2]
[380146657,1755575440088,-480.0,0.00019178,2]
[380146658,1755575440098,-480.0,0.00019178,2]
[380146659,1755575440108,-2087.49,0.00019178,2]
[380146660,1755575440117,-803.31,0.00019178,2]
[380146661,1755575440128,-480.0,0.00019178,2]
[380146662,1755575440138,-480.0,0.00019178,2]
[380146663,1755575440148,-505.65,0.00019178,2]
[380146664,1755575440157,-480.0,0.00019178,2]
[380146665,1755575440167,-465.89491794,0.00019178,2]
[380146666,1755575440178,-170.75878678,0.00019178,2]
[380146667,1755575440187,-493.79179275,0.00019178,2]
[380146668,1755575440197,-480.0,0.00019178,2]
[380146669,1755575440206,-191.37979236,0.00019178,2]
[380146670,1755575440216,-480.0,0.00019178,2]
[380146671,1755575440228,-522.0,0.00019178,2]
[380146673,1755575440238,-480.0,0.00019178,2]
[380146674,1755575440248,-480.0,0.00019178,2]
[380146675,1755575440258,-582.94001896,0.00019178,2]
[380146676,1755575440269,-1476.54,0.00019178,2]
[380146677,1755575440280,-480.0,0.00019178,2]
[380146678,1755575440291,-4819.17,0.00019178,2]
[380146679,1755575440303,-481.59678007,0.00019178,2]
[380146681,1755575440313,-461.4442143,0.00019178,2]
[380146683,1755575440323,-851.83,0.00019178,2]
[380146685,1755575440332,-480.0,0.00019178,2]
[380146687,1755575440342,-461.09164753,0.00019178,2]
[380146689,1755575440352,-480.0,0.00019178,2]
[380146691,1755575440361,-481.25056445,0.00019178,2]
[380146693,1755575440371,-689.64,0.00019178,2]
[380146695,1755575440381,-482.90799601,0.00019178,2]
[380146697,1755575440391,-583.43,0.00019178,2]
[380146699,1755575440401,-484.13448107,0.00019178,2]
[380146701,1755575440411,-741.01,0.00019178,2]
[380146703,1755575440420,-647.65,0.00019178,2]
[380146705,1755575440429,-480.0,0.00019178,2]
[380146707,1755575440439,-480.0,0.00019178,2]
[380146709,1755575440449,-480.0,0.00019178,2]
[380146711,1755575440458,-480.0,0.00019178,2]
[380146713,1755575440467,-480.0,0.00019178,2]
[380146716,1755575440477,-480.0,0.00019178,2]
[380146718,1755575440487,-494.54446467,0.00019178,2]
[380146720,1755575440497,-480.0,0.00019178,2]
[380146721,1755575440509,-480.0,0.00019178,2]
[380146723,1755575440518,-805.89,0.00019178,2]
[380146725,1755575440527,-550.06,0.00019178,2]
[380146727,1755575440537,-480.0,0.00019178,2]
[380146729,1755575440546,-480.0,0.00019178,2]
[380146731,1755575440555,-1917.84,0.00019178,2]
[380146733,1755575440564,-484.84335385,0.00019178,2]
[380146735,1755575440574,-480.0,0.00019178,2]
[380146737,1755575440584,-484.47574237,0.00019178,2]
[380146740,1755575440594,-2950.2,0.00019178,2]
[380146741,1755575440604,-633.44,0.00019178,2]
[380146744,1755575440614,-480.0,0.00019178,2]
[380146746,1755575440624,-480.79621738,0.00019178,2]
[380146748,1755575440633,-915.28,0.00019178,2]
[380146750,1755575440643,-480.0,0.00019178,2]
[380146752,1755575440653,-480.0,0.00019178,2]
[380146754,1755575440662,-480.0,0.00019178,2]
[380146756,1755575440672,-483.14869078,0.00019178,2]
[380146758,1755575440681,-480.0,0.00019178,2]
[380146760,1755575440691,-480.0,0.00019178,2]
[380146762,1755575440700,-480.0,0.00019178,2]
[380146764,1755575440710,-480.0,0.00019178,2]
[380146766,1755575440719,-577.41867385,0.00019178,2]
[380146768,1755575440728,-480.0,0.00019178,2]
[380146770,1755575440737,-634.79,0.00019178,2]
[380146772,1755575440746,-484.03214267,0.00019178,2]
[380146774,1755575440757,-480.0,0.00019178,2]
[380146776,1755575440767,-480.0,0.00019178,2]
[380146778,1755575440775,-480.0,0.00019178,2]
[380146780,1755575440784,-1201.0,0.00019178,2]
[380146782,1755575440794,-480.0,0.00019178,2]
[380146784,1755575440803,-516.35,0.00019178,2]
[380146786,1755575440812,-480.0,0.00019178,2]
[380146788,1755575440822,-666.0,0.00019178,2]
[380146789,1755575440831,-500.0,0.00019178,2]
[380146791,1755575440841,-250.0,0.0001926,2]
[380146793,1755575440851,-2033.51602686,0.00019284,2]
[380146795,1755575440860,-100000.0,0.00019329,2]
[380146797,1755575440870,-177.65399804,0.00019352,2]
[380146799,1755575440879,-8900.32646515,0.00019352,2]
[380146801,1755575440890,-480.0,0.00019452,2]
[380146803,1755575440899,-480.0,0.00019452,2]
[380146805,1755575440908,-480.0,0.00019452,2]
[380146807,1755575440917,-309.86719636,0.00019452,2]
[380146809,1755575440926,-480.0,0.00019452,2]
[380146811,1755575440936,-480.0,0.00019452,2]
[380146813,1755575440945,-480.0,0.00019452,2]
[380146815,1755575440954,-563.96115341,0.00019452,2]
[380146817,1755575440963,-5784.04,0.00019452,2]
[380146819,1755575440972,-480.0,0.00019452,2]
[380146821,1755575440981,-480.0,0.00019452,2]
[380146823,1755575440991,-485.48,0.00019452,2]
[380146825,1755575441000,-490.78060903,0.00019452,2]
[380146827,1755575441011,-480.0,0.00019452,2]
[380146829,1755575441020,-1361.6,0.00019452,2]
[380146831,1755575441029,-480.0,0.00019452,2]
[380146833,1755575441038,-480.0,0.00019452,2]
[380146835,1755575441047,-480.0,0.00019452,2]
[380146837,1755575441056,-664.72,0.00019452,2]
[380146839,1755575441066,-247.54596269,0.00019452,2]
[380146841,1755575441076,-480.0,0.00019452,2]
[380146843,1755575441085,-594.45534281,0.00019452,2]
[380146845,1755575441094,-480.0,0.00019452,2]
[380146847,1755575441103,-510.74407931,0.00019452,2]
[380146849,1755575441113,-613.49,0.00019452,2]
[380146851,1755575441122,-485.70651694,0.00019452,2]
[380146853,1755575441131,-480.0,0.00019452,2]
[380146855,1755575441141,-220.64926453,0.00019452,2]
[380146857,1755575441151,-480.0,0.00019452,2]
[380146859,1755575441160,-480.0,0.00019452,2]
[380146861,1755575441170,-245.23243078,0.00019452,2]
[380146862,1755575441180,-480.0,0.00019452,2]
[380146864,1755575441189,-480.0,0.00019452,2]
[380146867,1755575441199,-480.0,0.00019452,2]
[380146868,1755575441208,-480.0,0.00019452,2]
[380146870,1755575441218,-474.61496661,0.00019452,2]
[380146872,1755575441234,-480.0,0.00019452,2]
[380146875,1755575441244,-3111.06,0.00019452,2]
[380146877,1755575441254,-480.0,0.00019452,2]
[380146879,1755575441266,-480.0,0.00019452,2]
[380146880,1755575441275,-480.0,0.00019452,2]
[380146882,1755575441285,-497.02014658,0.00019452,2]
[380146884,1755575441294,-480.0,0.00019452,2]
[380146886,1755575441310,-480.0,0.00019452,2]
[380146899,1755575441422,-480.0,0.00019452,2]
[380146901,1755575441431,-666.39,0.00019452,2]
[380146903,1755575441440,-480.0,0.00019452,2]
[380146905,1755575441450,-1026.57,0.00019452,2]
[380146907,1755575441459,-480.0,0.00019452,2]
[380146908,1755575441468,-480.0,0.00019452,2]
[380146909,1755575441477,-480.0,0.00019452,2]
[380146910,1755575441486,-489.63,0.00019452,2]
[380146911,1755575441495,-480.0,0.00019452,2]
[380146912,1755575441505,-480.0,0.00019452,2]
[380146913,1755575441514,-480.0,0.00019452,2]
[380146914,1755575441522,-468.43143579,0.00019452,2]
[380146915,1755575441531,-775.37,0.00019452,2]
[380146916,1755575441540,-480.0,0.00019452,2]
[380146917,1755575441549,-243.22238701,0.00019452,2]
[380146918,1755575441558,-480.0,0.00019452,2]
[380146919,1755575441568,-480.0,0.00019452,2]
[380146920,1755575441577,-480.0,0.00019452,2]
[380146921,1755575441585,-480.0,0.00019452,2]
[380146922,1755575441595,-480.0,0.00019452,2]
[380146923,1755575441604,-480.0,0.00019452,2]
[380146924,1755575441613,-480.0,0.00019452,2]
[380146925,1755575441622,-480.0,0.00019452,2]
[380146926,1755575441630,-480.0,0.00019452,2]
[380146927,1755575441639,-832.21,0.00019452,2]
[380146928,1755575441648,-480.0,0.00019452,2]
[380146929,1755575441657,-1361.96,0.00019452,2]
[380146930,1755575441666,-480.0,0.00019452,2]
[380146931,1755575441675,-480.0,0.00019452,2]
[380146932,1755575441684,-905.94,0.00019452,2]
[380146933,1755575441693,-480.0,0.00019452,2]
[380146934,1755575441702,-480.0,0.00019452,2]
[380146935,1755575441711,-1307.81,0.00019452,2]
[380146936,1755575441720,-403.20127011,0.00019452,2]
[380146937,1755575441729,-480.0,0.00019452,2]
[380146938,1755575441738,-480.0,0.00019452,2]
[380146939,1755575441747,-480.0,0.00019452,2]
[380146940,1755575441757,-480.0,0.00019452,2]
[380146941,1755575441766,-816.48,0.00019452,2]
[380146942,1755575441775,-480.0,0.00019452,2]
[380146943,1755575441784,-831.01,0.00019452,2]
[380146944,1755575441793,-1296.29,0.00019452,2]
[380146945,1755575441802,-480.0,0.00019452,2]
[380146946,1755575441811,-480.0,0.00019452,2]
[380146947,1755575441820,-1758.19,0.00019452,2]
[380146948,1755575441829,-535.46,0.00019452,2]
[380146950,1755575441838,-480.0,0.00019452,2]
[380146951,1755575441847,-480.0,0.00019452,2]
[380146952,1755575441856,-827.18,0.00019452,2]
[380146953,1755575441865,-1295.8,0.00019452,2]
[380146955,1755575441874,-551.02,0.00019452,2]
[380146957,1755575441884,-480.0,0.00019452,2]
[380146959,1755575441893,-668.42,0.00019452,2]
[380146961,1755575441902,-510.7,0.00019452,2]
[380146963,1755575441912,-480.0,0.00019452,2]
[380146965,1755575441921,-449.18380249,0.00019452,2]
[380146966,1755575441930,-480.0,0.00019452,2]
[380146968,1755575441939,-480.0,0.00019452,2]
[380146970,1755575441949,-480.0,0.00019452,2]
[380146972,1755575441958,-353.98046352,0.00019452,2]
[380146974,1755575441967,-480.0,0.00019452,2]
[380146976,1755575441976,-480.0,0.00019452,2]
[380146978,1755575441985,-480.0,0.00019452,2]
[380146980,1755575441994,-480.0,0.00019452,2]
[380146982,1755575442005,-480.0,0.00019452,2]
[380146984,1755575442014,-471.41990258,0.00019452,2]
[380146986,1755575442023,-2661.95,0.00019452,2]
[380146988,1755575442032,-480.0,0.00019452,2]
[380146990,1755575442041,-480.0,0.00019452,2]
[380146992,1755575442051,-480.0,0.00019452,2]
[380146994,1755575442060,-2087.49,0.00019452,2]
[380146996,1755575442069,-803.31,0.00019452,2]
[380146998,1755575442078,-480.0,0.00019452,2]
[380147000,1755575442088,-480.0,0.00019452,2]
[380147002,1755575442097,-505.65,0.00019452,2]
[380147004,1755575442106,-480.0,0.00019452,2]
[380147006,1755575442116,-480.0,0.00019452,2]
[380147008,1755575442125,-480.0,0.00019452,2]
[380147010,1755575442135,-522.0,0.00019452,2]
[380147012,1755575442143,-480.0,0.00019452,2]
[380147014,1755575442153,-480.0,0.00019452,2]
[380147016,1755575442165,-1476.54,0.00019452,2]
[380147017,1755575442174,-480.0,0.00019452,2]
[380147019,1755575442184,-4819.17,0.00019452,2]
[380147021,1755575442193,-851.83,0.00019452,2]
[380147023,1755575442202,-480.0,0.00019452,2]
[380147025,1755575442212,-480.0,0.00019452,2]
[380147027,1755575442224,-689.64,0.00019452,2]
[380147029,1755575442233,-583.43,0.00019452,2]
[380147031,1755575442243,-741.01,0.00019452,2]
[380147033,1755575442252,-647.65,0.00019452,2]
[380147035,1755575442262,-480.0,0.00019452,2]
[380147037,1755575442273,-480.0,0.00019452,2]
[380147039,1755575442282,-480.0,0.00019452,2]
[380147041,1755575442292,-480.0,0.00019452,2]
[380147043,1755575442303,-480.0,0.00019452,2]
[380147045,1755575442314,-480.0,0.00019452,2]
[380147047,1755575442323,-237.5846028,0.00019452,2]
[380147049,1755575442332,-480.0,0.00019452,2]
[380147051,1755575442341,-805.89,0.00019452,2]
[380147053,1755575442350,-550.06,0.00019452,2]
[380147055,1755575442359,-480.0,0.00019452,2]
[380147057,1755575442368,-1917.84,0.00019452,2]
[380147059,1755575442377,-480.0,0.00019452,2]
[380147061,1755575442386,-480.0,0.00019452,2]
[380147063,1755575442396,-2950.2,0.00019452,2]
[380147065,1755575442406,-633.44,0.00019452,2]
[380147067,1755575442416,-480.0,0.00019452,2]
[380147069,1755575442425,-915.28,0.00019452,2]
[380147071,1755575442434,-480.0,0.00019452,2]
[380147073,1755575442444,-365.34105043,0.00019452,2]
[380147075,1755575442453,-480.0,0.00019452,2]
[380147077,1755575442462,-480.0,0.00019452,2]
[380147079,1755575442472,-480.0,0.00019452,2]
[380147080,1755575442481,-415.42394743,0.00019452,2]
[380147081,1755575442490,-634.79,0.00019452,2]
[380147082,1755575442500,-587.69090009,0.00019452,2]
[380147083,1755575442510,-480.0,0.00019452,2]
[380147084,1755575442519,-1201.0,0.00019452,2]
[380147085,1755575442528,-480.0,0.00019452,2]
[380147086,1755575442539,-516.35,0.00019452,2]
[380147087,1755575442548,-500.0,0.00019452,2]
[380147088,1755575442557,-200.0,0.00019561,20]
[380147089,1755575442567,-200.0,0.00019561,20]
[380147090,1755575442577,-200.0,0.00019561,20]
[380147091,1755575442587,-200.0,0.00019561,20]
[380147092,1755575442596,-200.0,0.00019561,20]
[380147093,1755575442605,-200.0,0.00019561,20]
[380147094,1755575442614,-200.0,0.00019561,20]
[380147095,1755575442623,-200.0,0.00019561,20]
[380147096,1755575442633,-200.0,0.00019561,20]
[380147097,1755575442643,-200.0,0.00019561,20]
[380147098,1755575442652,-200.0,0.00019561,20]
[380147099,1755575442661,-200.0,0.00019561,20]
[380147100,1755575442670,-200.0,0.00019561,20]
[380147101,1755575442680,-200.0,0.00019561,20]
[380147102,1755575442689,-200.0,0.00019561,20]
[380147103,1755575442699,-200.0,0.00019561,20]
[380147104,1755575442708,-200.0,0.00019561,20]
[380147105,1755575442718,-200.0,0.00019561,20]
[380147106,1755575442729,-200.0,0.00019561,20]
[380147107,1755575442739,-200.0,0.00019561,20]
[380147108,1755575442749,-177.65399804,0.00019626,2]
[380147109,1755575442759,-1161.151632,0.00019671,2]
[380147110,1755575442768,-153.0,0.00019671,2]
[380147111,1755575442777,-153.0,0.00019671,2]
[380147112,1755575442787,-153.0,0.00019671,2]
[380147113,1755575442796,-153.0,0.00019671,2]
[380147114,1755575442806,-528.6845513,0.00019674,2]
[380147115,1755575442815,-375.88899365,0.00019674,2]
[380147117,1755575442824,-843.93972674,0.00019674,2]
[380147118,1755575442833,-12685.85563623,0.00019674,2]
[380147119,1755575442848,-216.8835046,0.00019674,2]
[380147120,1755575442857,-215.79176414,0.00019674,2]
[380147121,1755575442867,-232.21311493,0.00019674,2]
[380147122,1755575442878,-160.0,0.00019674,2]
[380147123,1755575442887,-417.15472785,0.00019674,2]
[380147124,1755575442896,-160.0,0.00019674,2]
[380147125,1755575442905,-151.0,0.000197,2]
[380147126,1755575442915,-480.0,0.00019726,2]
[380147127,1755575442924,-238.19586781,0.00019726,2]
[380147128,1755575442933,-480.0,0.00019726,2]
[380147129,1755575442942,-480.0,0.00019726,2]
[380147131,1755575442951,-480.0,0.00019726,2]
[380147133,1755575442960,-480.0,0.00019726,2]
[380147136,1755575442970,-5784.04,0.00019726,2]
[380147138,1755575442979,-480.0,0.00019726,2]
[380147140,1755575442988,-627.69097457,0.00019726,2]
[380147141,1755575442998,-485.48,0.00019726,2]
[380147142,1755575443008,-480.0,0.00019726,2]
[380147143,1755575443017,-1361.6,0.00019726,2]
[380147144,1755575443026,-480.0,0.00019726,2]
[380147145,1755575443035,-480.0,0.00019726,2]
[380147146,1755575443045,-480.0,0.00019726,2]
[380147147,1755575443055,-664.72,0.00019726,2]
[380147148,1755575443137,-480.0,0.00019726,2]
[380147149,1755575443156,-480.0,0.00019726,2]
[380147150,1755575443166,-613.49,0.00019726,2]
[380147151,1755575443175,-480.0,0.00019726,2]
[380147152,1755575443184,-480.0,0.00019726,2]
[380147153,1755575443194,-480.0,0.00019726,2]
[380147154,1755575443204,-480.0,0.00019726,2]
[380147155,1755575443214,-480.0,0.00019726,2]
[380147156,1755575443227,-480.0,0.00019726,2]
[380147157,1755575443238,-480.0,0.00019726,2]
[380147158,1755575443253,-3111.06,0.00019726,2]
[380147159,1755575443263,-480.0,0.00019726,2]
[380147160,1755575443272,-480.0,0.00019726,2]
[380147161,1755575443281,-480.0,0.00019726,2]
[380147162,1755575443291,-480.0,0.00019726,2]
[380147163,1755575443303,-476.97606699,0.00019726,2]
[380147164,1755575443313,-666.39,0.00019726,2]
[380147165,1755575443322,-480.0,0.00019726,2]
[380147166,1755575443332,-1026.57,0.00019726,2]
[380147167,1755575443342,-480.0,0.00019726,2]
[380147168,1755575443351,-480.0,0.00019726,2]
[380147169,1755575443361,-489.63,0.00019726,2]
[380147170,1755575443371,-480.0,0.00019726,2]
[380147171,1755575443380,-480.0,0.00019726,2]
[380147172,1755575443390,-485.87073938,0.00019726,2]
[380147173,1755575443400,-480.0,0.00019726,2]
[380147174,1755575443411,-775.37,0.00019726,2]
[380147175,1755575443423,-480.0,0.00019726,2]
[380147176,1755575443433,-480.0,0.00019726,2]
[380147177,1755575443444,-480.0,0.00019726,2]
[380147178,1755575443457,-480.0,0.00019726,2]
[380147179,1755575443470,-480.0,0.00019726,2]
[380147180,1755575443479,-480.0,0.00019726,2]
[380147181,1755575443489,-486.35893075,0.00019726,2]
[380147182,1755575443500,-832.21,0.00019726,2]
[380147183,1755575443514,-480.0,0.00019726,2]
[380147184,1755575443524,-1361.96,0.00019726,2]
[380147185,1755575443534,-480.0,0.00019726,2]
[380147186,1755575443543,-480.0,0.00019726,2]
[380147187,1755575443553,-905.94,0.00019726,2]
[380147188,1755575443563,-480.0,0.00019726,2]
[380147189,1755575443573,-443.44306813,0.00019726,2]
[380147190,1755575443583,-1307.81,0.00019726,2]
[380147191,1755575443592,-480.0,0.00019726,2]
[380147192,1755575443602,-445.5094028,0.00019726,2]
[380147193,1755575443611,-265.10700677,0.00019726,2]
[380147194,1755575443620,-480.0,0.00019726,2]
[380147195,1755575443630,-816.48,0.00019726,2]
[380147196,1755575443639,-480.0,0.00019726,2]
[380147197,1755575443648,-831.01,0.00019726,2]
[380147198,1755575443658,-1296.29,0.00019726,2]
[380147199,1755575443667,-480.0,0.00019726,2]
[380147200,1755575443676,-480.0,0.00019726,2]
[380147201,1755575443686,-1758.19,0.00019726,2]
[380147202,1755575443696,-535.46,0.00019726,2]
[380147203,1755575443705,-480.0,0.00019726,2]
[380147204,1755575443715,-211.80864667,0.00019726,2]
[380147205,1755575443724,-827.18,0.00019726,2]
[380147206,1755575443733,-1295.8,0.00019726,2]
[380147207,1755575443743,-551.02,0.00019726,2]
[380147208,1755575443755,-480.0,0.00019726,2]
[380147209,1755575443764,-668.42,0.00019726,2]
[380147210,1755575443774,-480.0,0.00019726,2]
[380147211,1755575443783,-412.81679859,0.00019726,2]
[380147212,1755575443802,-97.88320141,0.00019726,2]
[380147213,1755575443812,-480.0,0.00019726,2]
[380147214,1755575443821,-415.00449974,0.00019726,2]
[380147215,1755575443830,-480.0,0.00019726,2]
[380147216,1755575443840,-480.0,0.00019726,2]
[380147217,1755575443849,-480.0,0.00019726,2]
[380147219,1755575443858,-480.0,0.00019726,2]
[380147221,1755575443867,-493.26935865,0.00019726,2]
[380147223,1755575443876,-480.0,0.00019726,2]
[380147224,1755575443886,-2661.95,0.00019726,2]
[380147226,1755575443896,-480.0,0.00019726,2]
[380147228,1755575443905,-480.0,0.00019726,2]
[380147230,1755575443915,-480.0,0.00019726,2]
[380147232,1755575443924,-2087.49,0.00019726,2]
[380147234,1755575443933,-803.31,0.00019726,2]
[380147236,1755575443943,-480.0,0.00019726,2]
[380147238,1755575443952,-480.0,0.00019726,2]
[380147240,1755575443961,-505.65,0.00019726,2]
[380147242,1755575443970,-480.0,0.00019726,2]
[380147244,1755575443980,-480.0,0.00019726,2]
[380147246,1755575443989,-490.77561804,0.00019726,2]
[380147248,1755575443999,-522.0,0.00019726,2]
[380147250,1755575444013,-480.0,0.00019726,2]
[380147252,1755575444022,-486.69222606,0.00019726,2]
[380147254,1755575444032,-1476.54,0.00019726,2]
[380147256,1755575444042,-480.0,0.00019726,2]
[380147258,1755575444052,-4819.17,0.00019726,2]
[380147260,1755575444063,-851.83,0.00019726,2]
[380147262,1755575444073,-480.0,0.00019726,2]
[380147264,1755575444084,-579.30368795,0.00019726,2]
[380147266,1755575444093,-689.64,0.00019726,2]
[380147268,1755575444102,-583.43,0.00019726,2]
[380147269,1755575444112,-741.01,0.00019726,2]
[380147271,1755575444122,-647.65,0.00019726,2]
[380147273,1755575444131,-383.77216219,0.00019726,2]
[380147275,1755575444141,-480.0,0.00019726,2]
[380147277,1755575444150,-480.0,0.00019726,2]
[380147279,1755575444160,-480.0,0.00019726,2]
[380147281,1755575444170,-480.0,0.00019726,2]
[380147283,1755575444179,-480.0,0.00019726,2]
[380147285,1755575444189,-480.0,0.00019726,2]
[380147287,1755575444198,-805.89,0.00019726,2]
[380147289,1755575444207,-550.06,0.00019726,2]
[380147291,1755575444217,-425.08798622,0.00019726,2]
[380147293,1755575444229,-1917.84,0.00019726,2]
[380147295,1755575444238,-480.0,0.00019726,2]
[380147297,1755575444247,-480.0,0.00019726,2]
[380147299,1755575444259,-2106.23519325,0.00019726,2]
[380147305,1755575444397,-501.4963,0.00019726,2]
[380147306,1755575444409,-342.46850675,0.00019726,2]
[380147307,1755575444418,-81.32316256,0.00019726,2]
[380147308,1755575444429,-398.67683744,0.00019726,2]
[380147309,1755575444439,-633.44,0.00019726,2]
[380147310,1755575444449,-915.28,0.00019726,2]
[380147311,1755575444458,-480.0,0.00019726,2]
[380147312,1755575444467,-480.0,0.00019726,2]
[380147313,1755575444476,-441.6914417,0.00019726,2]
[380147314,1755575444486,-242.71172072,0.00019726,2]
[380147315,1755575444497,-237.28827928,0.00019726,2]
[380147316,1755575444508,-634.79,0.00019726,2]
[380147317,1755575444518,-480.0,0.00019726,2]
[380147319,1755575444527,-1201.0,0.00019726,2]
[380147321,1755575444536,-480.0,0.00019726,2]
[380147323,1755575444546,-516.35,0.00019726,2]
[380147330,1755575444639,-500.0,0.00019726,2]
[380147332,1755575444649,-600.0,0.0001984,20]
[380147334,1755575444658,-248.26085,0.00019863,2]
[380147336,1755575444668,-177.65399804,0.00019899,2]
[380147338,1755575444677,-151.0,0.000199,2]
[380147340,1755575444686,-615.36576456,0.000199,2]
[380147342,1755575444695,-2499.99,0.00019972,2]
[380147343,1755575444704,-1905.4,0.00019989,2]
[380147345,1755575444714,-480.0,0.00019989,2]
[380147347,1755575444722,-717.31,0.00019989,2]
[380147348,1755575444732,-3842.99,0.00019989,2]
[380147349,1755575444741,-480.0,0.00019989,2]
[380147350,1755575444751,-1729.71,0.00019989,2]
[380147352,1755575444763,-500.0,0.00019989,2]
[380147354,1755575444771,-107.47811459,0.00019989,2]
[380147356,1755575444783,-392.52188541,0.00019989,2]
[380147358,1755575444792,-500.0,0.00019989,2]
[380147360,1755575444801,-500.0,0.00019989,2]
[380147362,1755575444810,-500.0,0.00019989,2]
[380147363,1755575444819,-480.0,0.00019989,2]
[380147365,1755575444828,-340.22180091,0.00019989,2]
[380147368,1755575444839,-310.34819909,0.00019989,2]
[380147370,1755575444849,-480.0,0.00019989,2]
[380147372,1755575444858,-480.0,0.00019989,2]
[380147373,1755575444868,-827.41,0.00019989,2]
[380147374,1755575444877,-500.0,0.00019999,2]
[380147376,1755575444886,-500.0,0.00019999,2]
[380147377,1755575444895,-500.0,0.00019999,2]
[380147378,1755575444904,-500.0,0.00019999,2]
[380147379,1755575444913,-199.2,0.00019999,2]
[380147380,1755575444923,-480.0,0.0002,2]
[380147381,1755575444932,-480.0,0.0002,2]
[380147382,1755575444941,-480.0,0.0002,2]
[380147383,1755575444950,-480.0,0.0002,2]
[380147384,1755575444960,-480.0,0.0002,2]
[380147385,1755575444969,-1746.76627036,0.0002,2]
[380147386,1755575444986,-480.0,0.00019452,2]
[380147387,1755575444995,-4037.27372964,0.0002,2]
[380147388,1755575445005,-480.0,0.0002,2]
[380147389,1755575445014,-485.48,0.0002,2]
[380147390,1755575445024,-480.0,0.0002,2]
[380147391,1755575445033,-1361.6,0.0002,2]
[380147392,1755575445042,-497.82017477,0.0002,2]
[380147393,1755575445052,-480.0,0.0002,2]
[380147394,1755575445061,-487.37441264,0.0002,2]
[380147395,1755575445071,-664.72,0.0002,2]
[380147396,1755575445080,-480.0,0.0002,2]
[380147397,1755575445090,-480.0,0.0002,2]
[380147398,1755575445099,-613.49,0.0002,2]
[380147399,1755575445108,-486.54167074,0.0002,2]
[380147400,1755575445118,-480.0,0.0002,2]
[380147401,1755575445128,-480.0,0.0002,2]
[380147402,1755575445137,-480.0,0.0002,2]
[380147403,1755575445146,-480.0,0.0002,2]
[380147404,1755575445156,-480.0,0.0002,2]
[380147405,1755575445165,-480.0,0.0002,2]
[380147406,1755575445176,-3111.06,0.0002,2]
[380147407,1755575445186,-480.0,0.0002,2]
[380147408,1755575445195,-577.19510198,0.0002,2]
[380147409,1755575445205,-480.0,0.0002,2]
[380147410,1755575445215,-666.39,0.0002,2]
[380147411,1755575445231,-163.61491023,0.0002,2]
[380147414,1755575445906,-480.0,0.00019178,2]
[380147415,1755575445920,-480.0,0.00019178,2]
[380147416,1755575445932,-480.0,0.00019452,2]
[380147418,1755575445944,-480.0,0.00019452,2]
[380147420,1755575445957,-480.0,0.00019726,2]